[Event "*** Titled Tuesday Blitz"]
[Site "Chess.com"]
[Date "2020.04.21"]
[Round "2"]
[White "Saloni1299"]
[Black "EmmaChess"]
[Result "0-1"]
[WhiteElo "2303"]
[BlackElo "2588"]
[TimeControl "180+1"]
[EndTime "10:14:06 PDT"]
[Termination "EmmaChess won by checkmate"]

1. e4 {[%clk 0:03:00.9]} 1... b6 {[%clk 0:02:59.2]} 2. Nf3 {[%clk 0:02:57.5]}
2... Bb7 {[%clk 0:02:59.1]} 3. Nc3 {[%clk 0:02:56.4]} 3... g6 {[%clk 0:02:57.4]}
4. d4 {[%clk 0:02:52.9]} 4... Bg7 {[%clk 0:02:49.6]} 5. Bd3 {[%clk 0:02:51.1]}
5... d6 {[%clk 0:02:48.1]} 6. O-O {[%clk 0:02:50.4]} 6... e6 {[%clk 0:02:48.3]}
7. Ne2 {[%clk 0:02:44.3]} 7... Ne7 {[%clk 0:02:48.8]} 8. c3 {[%clk 0:02:43.9]}
8... O-O {[%clk 0:02:48.4]} 9. Be3 {[%clk 0:02:42.5]} 9... c5 {[%clk 0:02:48.7]}
10. Qd2 {[%clk 0:02:40.6]} 10... Nbc6 {[%clk 0:02:46]} 11. Bh6 {[%clk
0:02:39.3]} 11... Rc8 {[%clk 0:02:42.8]} 12. h4 {[%clk 0:02:35.9]} 12... e5
{[%clk 0:02:42.8]} 13. d5 {[%clk 0:02:33.9]} 13... Nb8 {[%clk 0:02:41.4]} 14. h5
{[%clk 0:02:31.3]} 14... Nd7 {[%clk 0:02:28]} 15. hxg6 {[%clk 0:02:27.7]} 15...
hxg6 {[%clk 0:02:23.4]} 16. g3 {[%clk 0:02:24.8]} 16... Nf6 {[%clk 0:02:21.2]}
17. Kg2 {[%clk 0:02:23.4]} 17... Nexd5 {[%clk 0:02:20.4]} 18. exd5 {[%clk
0:02:19.9]} 18... e4 {[%clk 0:02:20.8]} 19. Bxg7 {[%clk 0:02:15.2]} 19... exf3+
{[%clk 0:02:20.3]} 20. Kxf3 {[%clk 0:02:14.2]} 20... Bxd5+ {[%clk 0:02:20.2]}
21. Kf4 {[%clk 0:02:05.2]} 21... Nh5+ {[%clk 0:01:59.5]} 22. Kg4 {[%clk
0:02:01.5]} 22... Qd7+ {[%clk 0:01:56.6]} 23. Kh4 {[%clk 0:02:00.4]} 23... Kxg7
{[%clk 0:01:56.6]} 24. g4 {[%clk 0:01:52.9]} 24... Rh8 {[%clk 0:01:55]} 25. Bxg6
{[%clk 0:01:38.4]} 25... Nf6+ {[%clk 0:01:48.5]} 26. Kg3 {[%clk 0:01:35.8]}
26... Qxg4# {[%clk 0:01:49.4]} 0-1

[Event "*** Titled Tuesday Blitz"]
[Site "Chess.com"]
[Date "2020.04.21"]
[Round "2"]
[White "juniortay"]
[Black "Pavalamalli"]
[Result "1-0"]
[WhiteElo "2403"]
[BlackElo "2110"]
[TimeControl "180+1"]
[EndTime "10:14:09 PDT"]
[Termination "juniortay won by resignation"]

1. e4 {[%clk 0:03:00.9]} 1... c5 {[%clk 0:02:59.7]} 2. Nf3 {[%clk 0:03:01.1]}
2... e6 {[%clk 0:02:59.8]} 3. d4 {[%clk 0:03:01.4]} 3... cxd4 {[%clk 0:03:00.2]}
4. Bg5 {[%clk 0:03:01.9]} 4... Be7 {[%clk 0:02:55]} 5. Bxe7 {[%clk 0:03:01.7]}
5... Nxe7 {[%clk 0:02:55.1]} 6. Qxd4 {[%clk 0:03:02.3]} 6... O-O {[%clk
0:02:54.2]} 7. Nc3 {[%clk 0:03:01.8]} 7... Nbc6 {[%clk 0:02:54.3]} 8. Qd6 {[%clk
0:03:01.9]} 8... a6 {[%clk 0:02:36.4]} 9. O-O-O {[%clk 0:03:01]} 9... b5 {[%clk
0:02:35.4]} 10. a3 {[%clk 0:02:59.6]} 10... Ra7 {[%clk 0:02:35.1]} 11. Be2
{[%clk 0:02:57.1]} 11... Qb6 {[%clk 0:02:26.3]} 12. Rhf1 {[%clk 0:02:54.9]}
12... Rc7 {[%clk 0:02:25.4]} 13. Kb1 {[%clk 0:02:53.7]} 13... Bb7 {[%clk
0:02:20.4]} 14. Ne5 {[%clk 0:02:39.2]} 14... Bc8 {[%clk 0:02:04.1]} 15. f4
{[%clk 0:02:37.2]} 15... b4 {[%clk 0:02:03.4]} 16. axb4 {[%clk 0:02:35.4]} 16...
Qxb4 {[%clk 0:02:03.3]} 17. Qxc7 {[%clk 0:02:23.9]} 17... Nxe5 {[%clk
0:01:35.1]} 18. fxe5 {[%clk 0:02:22.7]} 18... Nc6 {[%clk 0:01:34.8]} 19. Qd6
{[%clk 0:02:16.4]} 19... Qb6 {[%clk 0:01:32.6]} 20. Na4 {[%clk 0:02:13.7]} 20...
Qa5 {[%clk 0:01:30.7]} 21. b3 {[%clk 0:02:00.2]} 21... Nxe5 {[%clk 0:01:28.1]}
22. Qc5 {[%clk 0:01:58.5]} 1-0

[Event "*** Titled Tuesday Blitz"]
[Site "Chess.com"]
[Date "2020.04.21"]
[Round "2"]
[White "gmelviro"]
[Black "Dinamo81"]
[Result "0-1"]
[WhiteElo "2134"]
[BlackElo "2624"]
[TimeControl "180+1"]
[EndTime "10:14:14 PDT"]
[Termination "Dinamo81 won by resignation"]

1. c4 {[%clk 0:03:00.9]} 1... e6 {[%clk 0:02:58.4]} 2. g3 {[%clk 0:03:00]} 2...
d5 {[%clk 0:02:56.7]} 3. Bg2 {[%clk 0:03:00.4]} 3... a6 {[%clk 0:02:55]} 4. Nf3
{[%clk 0:02:58.8]} 4... dxc4 {[%clk 0:02:53.3]} 5. Na3 {[%clk 0:02:53]} 5... b5
{[%clk 0:02:36.5]} 6. Ne5 {[%clk 0:02:37.4]} 6... c6 {[%clk 0:02:30.6]} 7. Nxc6
{[%clk 0:02:09]} 7... Qb6 {[%clk 0:02:28.8]} 8. Nxb8 {[%clk 0:02:02.2]} 8...
Rxb8 {[%clk 0:02:27.3]} 9. O-O {[%clk 0:02:00.3]} 9... Bb7 {[%clk 0:02:26.5]}
10. b3 {[%clk 0:01:57.8]} 10... Bxg2 {[%clk 0:02:24.8]} 11. Kxg2 {[%clk
0:01:56.5]} 11... cxb3 {[%clk 0:02:01.3]} 12. axb3 {[%clk 0:01:50]} 12... Nf6
{[%clk 0:02:00.6]} 13. Bb2 {[%clk 0:01:46.4]} 13... Be7 {[%clk 0:01:57.2]} 14.
d3 {[%clk 0:01:36]} 14... O-O {[%clk 0:01:55.3]} 15. Nc2 {[%clk 0:01:30.5]}
15... Rfc8 {[%clk 0:01:45.7]} 16. Qd2 {[%clk 0:01:28.5]} 16... Qc6+ {[%clk
0:01:44.2]} 17. f3 {[%clk 0:01:17.2]} 17... Qxc2 {[%clk 0:01:43.5]} 0-1

[Event "*** Titled Tuesday Blitz"]
[Site "Chess.com"]
[Date "2020.04.21"]
[Round "2"]
[White "Arek_pacitan"]
[Black "AvitalBor"]
[Result "0-1"]
[WhiteElo "2554"]
[BlackElo "2806"]
[TimeControl "180+1"]
[EndTime "10:14:15 PDT"]
[Termination "AvitalBor won by resignation"]

1. d4 {[%clk 0:03:00.9]} 1... e6 {[%clk 0:02:58.9]} 2. Nf3 {[%clk 0:03:00.1]}
2... c5 {[%clk 0:02:58.2]} 3. c3 {[%clk 0:02:59.5]} 3... d5 {[%clk 0:02:57.6]}
4. Bf4 {[%clk 0:02:59.1]} 4... Ne7 {[%clk 0:02:56.3]} 5. e3 {[%clk 0:02:58.8]}
5... Ng6 {[%clk 0:02:56.5]} 6. Bg3 {[%clk 0:02:58.9]} 6... Nc6 {[%clk
0:02:56.3]} 7. Nbd2 {[%clk 0:02:58.9]} 7... h5 {[%clk 0:02:54.2]} 8. h3 {[%clk
0:02:57]} 8... h4 {[%clk 0:02:54.2]} 9. Bh2 {[%clk 0:02:57]} 9... Bd6 {[%clk
0:02:47]} 10. Bxd6 {[%clk 0:02:56.2]} 10... Qxd6 {[%clk 0:02:47.9]} 11. Bd3
{[%clk 0:02:56.7]} 11... Bd7 {[%clk 0:02:45.6]} 12. Bxg6 {[%clk 0:02:55]} 12...
fxg6 {[%clk 0:02:44.9]} 13. Qb3 {[%clk 0:02:53.7]} 13... O-O-O {[%clk
0:02:43.1]} 14. O-O-O {[%clk 0:02:46.7]} 14... Kb8 {[%clk 0:02:42.1]} 15. Kb1
{[%clk 0:02:46.5]} 15... e5 {[%clk 0:02:35.7]} 16. dxe5 {[%clk 0:02:40.2]} 16...
Nxe5 {[%clk 0:02:36.6]} 17. Ka1 {[%clk 0:02:40.1]} 17... Nd3 {[%clk 0:02:25.3]}
18. Rdf1 {[%clk 0:02:16.2]} 18... Bf5 {[%clk 0:02:21.4]} 19. c4 {[%clk
0:02:10.8]} 19... dxc4 {[%clk 0:01:47.5]} 20. Nxc4 {[%clk 0:02:11.7]} 20... Qa6
{[%clk 0:01:47.5]} 21. Nfd2 {[%clk 0:01:50.1]} 21... Nb4 {[%clk 0:01:46.9]} 22.
e4 {[%clk 0:01:49.9]} 22... Rd3 {[%clk 0:01:43.7]} 0-1

[Event "*** Titled Tuesday Blitz"]
[Site "Chess.com"]
[Date "2020.04.21"]
[Round "2"]
[White "Bajecny"]
[Black "Toro1234"]
[Result "1-0"]
[WhiteElo "2371"]
[BlackElo "2638"]
[TimeControl "180+1"]
[EndTime "10:14:24 PDT"]
[Termination "Bajecny won by resignation"]

1. d4 {[%clk 0:03:00.9]} 1... d5 {[%clk 0:02:58.8]} 2. c4 {[%clk 0:03:00.4]}
2... e6 {[%clk 0:02:58.5]} 3. Nf3 {[%clk 0:03:00.9]} 3... c6 {[%clk 0:02:57.7]}
4. Nc3 {[%clk 0:02:59.6]} 4... dxc4 {[%clk 0:02:57]} 5. e4 {[%clk 0:03:00.1]}
5... b5 {[%clk 0:02:56.4]} 6. Be2 {[%clk 0:03:00.6]} 6... Bb7 {[%clk 0:02:56]}
7. O-O {[%clk 0:03:00.3]} 7... Nd7 {[%clk 0:02:51.5]} 8. Bg5 {[%clk 0:03:00.6]}
8... Be7 {[%clk 0:02:50.8]} 9. Bxe7 {[%clk 0:02:59.8]} 9... Nxe7 {[%clk
0:02:51.7]} 10. e5 {[%clk 0:02:59.2]} 10... O-O {[%clk 0:02:49.2]} 11. Ne4
{[%clk 0:02:58.8]} 11... Nd5 {[%clk 0:02:48.4]} 12. b3 {[%clk 0:02:57.5]} 12...
cxb3 {[%clk 0:02:45.8]} 13. Qxb3 {[%clk 0:02:58.4]} 13... h6 {[%clk 0:02:41.2]}
14. Rac1 {[%clk 0:02:57.6]} 14... Qb6 {[%clk 0:02:39.8]} 15. Nc5 {[%clk
0:02:56.5]} 15... Nxc5 {[%clk 0:02:38.6]} 16. Rxc5 {[%clk 0:02:57.4]} 16... a5
{[%clk 0:02:37.1]} 17. a4 {[%clk 0:02:51.5]} 17... b4 {[%clk 0:02:33.8]} 18.
Rfc1 {[%clk 0:02:52]} 18... Rfc8 {[%clk 0:02:32.3]} 19. Nd2 {[%clk 0:02:52.2]}
19... Ba6 {[%clk 0:02:27.4]} 20. Bxa6 {[%clk 0:02:51.8]} 20... Qxa6 {[%clk
0:02:26.4]} 21. Nc4 {[%clk 0:02:52.4]} 21... Nc3 {[%clk 0:02:21.3]} 22. Rc2
{[%clk 0:02:46.9]} 22... Rd8 {[%clk 0:02:14.9]} 23. Rxa5 {[%clk 0:02:46.1]}
23... Rxd4 {[%clk 0:02:07.8]} 24. Rxc3 {[%clk 0:02:38.4]} 24... Qxa5 {[%clk
0:01:50.6]} 25. Nxa5 {[%clk 0:02:37.9]} 25... bxc3 {[%clk 0:01:50.7]} 26. Nxc6
{[%clk 0:02:29.6]} 26... Rdxa4 {[%clk 0:01:42.9]} 27. g3 {[%clk 0:02:30]} 27...
Ra3 {[%clk 0:01:42.4]} 28. Qc2 {[%clk 0:02:29.5]} 28... Kf8 {[%clk 0:01:39.8]}
29. Nd4 {[%clk 0:02:23.3]} 29... Rc8 {[%clk 0:01:33.6]} 30. Nb5 {[%clk
0:02:20.2]} 30... Ra2 {[%clk 0:01:22.7]} 31. Qxa2 {[%clk 0:02:19.7]} 31... c2
{[%clk 0:01:23.1]} 32. Qa3+ {[%clk 0:02:20.2]} 32... Kg8 {[%clk 0:01:23.2]} 33.
Qc1 {[%clk 0:02:20.8]} 33... Rb8 {[%clk 0:01:19.5]} 34. Na3 {[%clk 0:02:18.5]}
1-0

[Event "*** Titled Tuesday Blitz"]
[Site "Chess.com"]
[Date "2020.04.21"]
[Round "2"]
[White "Echecmat"]
[Black "NTBT_DHS"]
[Result "0-1"]
[WhiteElo "2149"]
[BlackElo "2626"]
[TimeControl "180+1"]
[EndTime "10:14:31 PDT"]
[Termination "NTBT_DHS won by resignation"]

1. e4 {[%clk 0:03:00.2]} 1... g6 {[%clk 0:02:59.3]} 2. d4 {[%clk 0:02:58.4]}
2... Bg7 {[%clk 0:03:00.2]} 3. Nc3 {[%clk 0:02:57.3]} 3... d6 {[%clk 0:03:00.6]}
4. Be3 {[%clk 0:02:56.1]} 4... Nd7 {[%clk 0:02:59.8]} 5. f3 {[%clk 0:02:51.6]}
5... a6 {[%clk 0:02:59.5]} 6. h4 {[%clk 0:02:51.1]} 6... Ngf6 {[%clk 0:02:58.8]}
7. Qd2 {[%clk 0:02:46.8]} 7... b5 {[%clk 0:02:58.8]} 8. Nh3 {[%clk 0:02:45.9]}
8... c5 {[%clk 0:02:54.4]} 9. O-O-O {[%clk 0:02:42.5]} 9... c4 {[%clk
0:02:51.4]} 10. Nf4 {[%clk 0:02:39.8]} 10... Bb7 {[%clk 0:02:37.8]} 11. h5
{[%clk 0:02:36.3]} 11... Rc8 {[%clk 0:02:26.1]} 12. hxg6 {[%clk 0:02:34.1]}
12... hxg6 {[%clk 0:02:25.8]} 13. Rxh8+ {[%clk 0:02:32.2]} 13... Bxh8 {[%clk
0:02:26.7]} 14. Ncd5 {[%clk 0:02:29.7]} 14... Nxd5 {[%clk 0:02:20.3]} 15. exd5
{[%clk 0:02:21.8]} 15... Nb6 {[%clk 0:01:59.4]} 16. Be2 {[%clk 0:02:03.6]} 16...
Nxd5 {[%clk 0:01:58.1]} 17. Nxd5 {[%clk 0:02:01.4]} 17... Bxd5 {[%clk
0:01:57.9]} 18. Rh1 {[%clk 0:02:01.4]} 18... Bf6 {[%clk 0:01:56.6]} 19. Bg5
{[%clk 0:02:00.4]} 19... Kd7 {[%clk 0:01:26.7]} 20. c3 {[%clk 0:01:51.3]} 20...
e6 {[%clk 0:01:23.5]} 21. Bxf6 {[%clk 0:01:47.6]} 21... Qxf6 {[%clk 0:01:24.4]}
22. Rh4 {[%clk 0:01:31.2]} 22... Qxh4 {[%clk 0:01:22.7]} 0-1

[Event "*** Titled Tuesday Blitz"]
[Site "Chess.com"]
[Date "2020.04.21"]
[Round "2"]
[White "Kildepiotr"]
[Black "Justinz"]
[Result "1-0"]
[WhiteElo "2537"]
[BlackElo "2281"]
[TimeControl "180+1"]
[EndTime "10:14:31 PDT"]
[Termination "Kildepiotr won by resignation"]

1. Nf3 {[%clk 0:03:00.9]} 1... Nf6 {[%clk 0:02:54.6]} 2. g3 {[%clk 0:02:59.9]}
2... e6 {[%clk 0:02:54.1]} 3. Bg2 {[%clk 0:03:00.5]} 3... d5 {[%clk 0:02:54.3]}
4. O-O {[%clk 0:03:00.9]} 4... Be7 {[%clk 0:02:54.8]} 5. d3 {[%clk 0:03:01.4]}
5... c5 {[%clk 0:02:54.8]} 6. Nbd2 {[%clk 0:03:01.8]} 6... Nc6 {[%clk
0:02:55.3]} 7. e4 {[%clk 0:03:02]} 7... b6 {[%clk 0:02:53.5]} 8. Qe2 {[%clk
0:03:01.8]} 8... Bb7 {[%clk 0:02:53.9]} 9. c3 {[%clk 0:03:01.7]} 9... Qc7 {[%clk
0:02:54]} 10. Re1 {[%clk 0:03:01.4]} 10... O-O-O {[%clk 0:02:52.1]} 11. a3
{[%clk 0:02:59.7]} 11... h5 {[%clk 0:02:50.6]} 12. b4 {[%clk 0:02:56.9]} 12...
Rdg8 {[%clk 0:02:42.3]} 13. Ng5 {[%clk 0:02:53.6]} 13... Rf8 {[%clk 0:02:27.1]}
14. Nb3 {[%clk 0:02:44.9]} 14... h4 {[%clk 0:02:13.4]} 15. bxc5 {[%clk
0:02:37.6]} 15... bxc5 {[%clk 0:02:13.4]} 16. Bf4 {[%clk 0:02:34.4]} 16... Qd8
{[%clk 0:01:53.1]} 17. Rab1 {[%clk 0:02:24.4]} 17... hxg3 {[%clk 0:01:52.9]} 18.
hxg3 {[%clk 0:02:24.1]} 18... Nh5 {[%clk 0:01:52.4]} 19. exd5 {[%clk 0:02:16.6]}
19... exd5 {[%clk 0:01:50.3]} 20. Qg4+ {[%clk 0:02:09.6]} 20... f5 {[%clk
0:01:48.3]} 21. Qf3 {[%clk 0:02:06.3]} 21... Bxg5 {[%clk 0:01:38.1]} 22. Bxg5
{[%clk 0:02:02.3]} 22... Qxg5 {[%clk 0:01:37.8]} 23. Nxc5 {[%clk 0:01:57.2]}
23... Ba8 {[%clk 0:01:36.2]} 24. Qxd5 {[%clk 0:01:55.5]} 1-0

[Event "*** Titled Tuesday Blitz"]
[Site "Chess.com"]
[Date "2020.04.21"]
[Round "2"]
[White "ama18"]
[Black "ALEXJR20"]
[Result "1-0"]
[WhiteElo "2470"]
[BlackElo "2248"]
[TimeControl "180+1"]
[EndTime "10:14:35 PDT"]
[Termination "ama18 won by resignation"]

1. e4 {[%clk 0:03:00.9]} 1... Nc6 {[%clk 0:03:00.1]} 2. Nf3 {[%clk 0:02:59.8]}
2... d5 {[%clk 0:03:00.5]} 3. exd5 {[%clk 0:02:59.6]} 3... Qxd5 {[%clk
0:03:01.4]} 4. Nc3 {[%clk 0:02:56.7]} 4... Qh5 {[%clk 0:03:01.4]} 5. d4 {[%clk
0:02:50.9]} 5... Bg4 {[%clk 0:02:58.6]} 6. Be2 {[%clk 0:02:50.8]} 6... Nf6
{[%clk 0:02:58.3]} 7. h3 {[%clk 0:02:39.1]} 7... O-O-O {[%clk 0:02:57.9]} 8. O-O
{[%clk 0:02:30.8]} 8... e6 {[%clk 0:02:50.8]} 9. hxg4 {[%clk 0:01:57.3]} 9...
Nxg4 {[%clk 0:02:51.7]} 10. Bf4 {[%clk 0:01:54.6]} 10... Bd6 {[%clk 0:02:50.8]}
11. Bxd6 {[%clk 0:01:37.3]} 11... Rxd6 {[%clk 0:02:51.7]} 12. Ne4 {[%clk
0:01:01.4]} 12... Rxd4 {[%clk 0:02:44.7]} 13. Ng3 {[%clk 0:01:01]} 13... Rxd1
{[%clk 0:02:42.5]} 14. Nxh5 {[%clk 0:01:00.7]} 14... Rxa1 {[%clk 0:02:42.3]} 15.
Rxa1 {[%clk 0:01:00.6]} 15... g6 {[%clk 0:02:42]} 16. Ng3 {[%clk 0:01:00.3]}
16... Rd8 {[%clk 0:02:37.5]} 17. Rd1 {[%clk 0:00:59.2]} 17... Rxd1+ {[%clk
0:02:31.6]} 18. Bxd1 {[%clk 0:01:00.1]} 18... Nf6 {[%clk 0:02:30.6]} 19. Ng5
{[%clk 0:00:58.5]} 19... Nb4 {[%clk 0:02:25.4]} 20. a3 {[%clk 0:00:57.3]} 20...
Na6 {[%clk 0:02:15.6]} 21. Nxf7 {[%clk 0:00:57]} 21... Nc5 {[%clk 0:02:14.5]}
22. Ng5 {[%clk 0:00:56.1]} 22... h6 {[%clk 0:02:13.2]} 23. Nf3 {[%clk
0:00:55.9]} 23... Na4 {[%clk 0:02:12.5]} 24. b3 {[%clk 0:00:54.1]} 24... Nc3
{[%clk 0:02:12.7]} 25. Be2 {[%clk 0:00:54.4]} 25... h5 {[%clk 0:02:11]} 26. Bd3
{[%clk 0:00:54.3]} 26... g5 {[%clk 0:02:08.1]} 27. Nxg5 {[%clk 0:00:53.9]} 1-0

[Event "*** Titled Tuesday Blitz"]
[Site "Chess.com"]
[Date "2020.04.21"]
[Round "2"]
[White "northridgehawk"]
[Black "MathiasWomacka"]
[Result "0-1"]
[WhiteElo "2225"]
[BlackElo "2455"]
[TimeControl "180+1"]
[EndTime "10:14:35 PDT"]
[Termination "MathiasWomacka won by resignation"]

1. e4 {[%clk 0:03:00.9]} 1... c5 {[%clk 0:02:59.9]} 2. Nf3 {[%clk 0:03:01.1]}
2... d6 {[%clk 0:03:00.5]} 3. d4 {[%clk 0:03:01.4]} 3... cxd4 {[%clk 0:03:01.4]}
4. Nxd4 {[%clk 0:03:02.3]} 4... Nf6 {[%clk 0:03:01.7]} 5. Nc3 {[%clk 0:03:02.8]}
5... a6 {[%clk 0:03:02.1]} 6. h3 {[%clk 0:03:01.5]} 6... e6 {[%clk 0:03:01.5]}
7. g4 {[%clk 0:02:58.4]} 7... b5 {[%clk 0:03:01.3]} 8. Bg2 {[%clk 0:02:54.7]}
8... Bb7 {[%clk 0:03:01.7]} 9. O-O {[%clk 0:02:52.7]} 9... Nfd7 {[%clk
0:02:58.8]} 10. Be3 {[%clk 0:02:51.2]} 10... Nc6 {[%clk 0:02:57.7]} 11. Nce2
{[%clk 0:02:44.9]} 11... Be7 {[%clk 0:02:55.7]} 12. f4 {[%clk 0:02:45.2]} 12...
Rc8 {[%clk 0:02:45.8]} 13. c3 {[%clk 0:02:44.9]} 13... Nb6 {[%clk 0:02:39]} 14.
Bf2 {[%clk 0:02:44]} 14... Nc4 {[%clk 0:02:38.2]} 15. Rb1 {[%clk 0:02:44]} 15...
O-O {[%clk 0:02:36.5]} 16. Ng3 {[%clk 0:02:29]} 16... Bh4 {[%clk 0:02:29.7]} 17.
Qd3 {[%clk 0:02:22.7]} 17... e5 {[%clk 0:02:14]} 18. Ndf5 {[%clk 0:02:20.8]}
18... exf4 {[%clk 0:02:13.9]} 19. Nh5 {[%clk 0:02:20]} 19... Bxf2+ {[%clk
0:02:12]} 20. Rxf2 {[%clk 0:02:11.4]} 20... g6 {[%clk 0:02:08]} 21. Nh6+ {[%clk
0:02:05]} 21... Kh8 {[%clk 0:02:07.7]} 22. Nxf4 {[%clk 0:02:05.9]} 22... Qg5
{[%clk 0:01:59.9]} 23. b3 {[%clk 0:02:05.9]} 23... N4e5 {[%clk 0:01:55.7]} 24.
Qd5 {[%clk 0:02:00.7]} 24... Qxh6 {[%clk 0:01:55.7]} 25. Qxd6 {[%clk 0:02:01.1]}
25... Qg5 {[%clk 0:01:42.3]} 26. Nd5 {[%clk 0:01:56.8]} 26... Rfd8 {[%clk
0:01:35.9]} 27. Qc5 {[%clk 0:01:45.4]} 27... Nd3 {[%clk 0:01:33.9]} 28. Qb6
{[%clk 0:01:41.2]} 28... Nxf2 {[%clk 0:01:33.7]} 29. Kxf2 {[%clk 0:01:42.1]} 0-1

[Event "*** Titled Tuesday Blitz"]
[Site "Chess.com"]
[Date "2020.04.21"]
[Round "2"]
[White "KarpovVadim"]
[Black "NTDVAN12"]
[Result "0-1"]
[WhiteElo "2305"]
[BlackElo "2605"]
[TimeControl "180+1"]
[EndTime "10:14:55 PDT"]
[Termination "NTDVAN12 won by resignation"]

1. Nf3 {[%clk 0:02:56.6]} 1... d5 {[%clk 0:02:59.7]} 2. d4 {[%clk 0:02:55.9]}
2... Nf6 {[%clk 0:02:59.1]} 3. c4 {[%clk 0:02:55.7]} 3... e6 {[%clk 0:02:58.5]}
4. Nc3 {[%clk 0:02:55.8]} 4... Bb4 {[%clk 0:02:55.9]} 5. e3 {[%clk 0:02:54.7]}
5... O-O {[%clk 0:02:54.3]} 6. Bd2 {[%clk 0:02:54.8]} 6... b6 {[%clk 0:02:53.3]}
7. cxd5 {[%clk 0:02:54]} 7... exd5 {[%clk 0:02:54.2]} 8. Bd3 {[%clk 0:02:53.4]}
8... Re8 {[%clk 0:02:52.4]} 9. O-O {[%clk 0:02:53]} 9... Bb7 {[%clk 0:02:50.4]}
10. a3 {[%clk 0:02:51.7]} 10... Bd6 {[%clk 0:02:49]} 11. b4 {[%clk 0:02:51.6]}
11... a6 {[%clk 0:02:48.4]} 12. Qb3 {[%clk 0:02:50.2]} 12... Nbd7 {[%clk
0:02:45]} 13. Rfc1 {[%clk 0:02:49.7]} 13... Qe7 {[%clk 0:02:40.7]} 14. Be1
{[%clk 0:02:48.3]} 14... b5 {[%clk 0:02:36.8]} 15. a4 {[%clk 0:02:38.3]} 15...
c6 {[%clk 0:02:37]} 16. Ne2 {[%clk 0:02:23.7]} 16... Nb6 {[%clk 0:02:34.4]} 17.
Ng3 {[%clk 0:02:23.5]} 17... g6 {[%clk 0:02:33.4]} 18. axb5 {[%clk 0:02:21.3]}
18... axb5 {[%clk 0:02:33.3]} 19. Qd1 {[%clk 0:02:13.1]} 19... Bxb4 {[%clk
0:02:24.8]} 20. Ne5 {[%clk 0:02:07]} 20... Bd6 {[%clk 0:02:16.7]} 21. Rxa8
{[%clk 0:02:04.1]} 21... Rxa8 {[%clk 0:02:14.3]} 22. Nxc6 {[%clk 0:02:03.9]}
22... Bxc6 {[%clk 0:02:14.6]} 23. Rxc6 {[%clk 0:02:03.7]} 23... Nc4 {[%clk
0:02:13]} 24. Bxc4 {[%clk 0:01:44.3]} 24... dxc4 {[%clk 0:02:06.4]} 25. d5
{[%clk 0:01:36.6]} 25... Qe5 {[%clk 0:01:59.7]} 26. Qe2 {[%clk 0:01:15]} 26...
Qxd5 {[%clk 0:01:54.5]} 27. Rb6 {[%clk 0:01:13.4]} 27... Ra1 {[%clk 0:01:51.1]}
0-1

[Event "*** Titled Tuesday Blitz"]
[Site "Chess.com"]
[Date "2020.04.21"]
[Round "2"]
[White "fugadelafuga"]
[Black "BlackWidow515"]
[Result "1-0"]
[WhiteElo "2390"]
[BlackElo "2065"]
[TimeControl "180+1"]
[EndTime "10:14:55 PDT"]
[Termination "fugadelafuga won by checkmate"]

1. e4 {[%clk 0:03:00.9]} 1... e5 {[%clk 0:02:59.6]} 2. Nf3 {[%clk 0:02:59.3]}
2... Nc6 {[%clk 0:03:00]} 3. d4 {[%clk 0:02:58.6]} 3... exd4 {[%clk 0:03:00.1]}
4. Bc4 {[%clk 0:02:59.1]} 4... Nf6 {[%clk 0:02:59.2]} 5. O-O {[%clk 0:02:54.1]}
5... Nxe4 {[%clk 0:02:55.3]} 6. Re1 {[%clk 0:02:53.5]} 6... d5 {[%clk
0:02:55.7]} 7. Bxd5 {[%clk 0:02:54]} 7... Qxd5 {[%clk 0:02:56.1]} 8. Nc3 {[%clk
0:02:54.3]} 8... Qa5 {[%clk 0:02:56.7]} 9. Nxe4 {[%clk 0:02:52.1]} 9... Be6
{[%clk 0:02:57.1]} 10. Neg5 {[%clk 0:02:52]} 10... O-O-O {[%clk 0:02:57.5]} 11.
Nxe6 {[%clk 0:02:52.5]} 11... fxe6 {[%clk 0:02:58]} 12. Rxe6 {[%clk 0:02:53]}
12... Bd6 {[%clk 0:02:53.2]} 13. Qe2 {[%clk 0:02:35.9]} 13... Kd7 {[%clk
0:02:40]} 14. Bd2 {[%clk 0:02:33]} 14... Qf5 {[%clk 0:02:29.6]} 15. Re1 {[%clk
0:02:20.6]} 15... Kc8 {[%clk 0:01:42.8]} 16. Re4 {[%clk 0:02:08.1]} 16... h6
{[%clk 0:01:37]} 17. b4 {[%clk 0:02:04.4]} 17... Bxb4 {[%clk 0:00:55.1]} 18.
Bxb4 {[%clk 0:02:00.6]} 18... Nxb4 {[%clk 0:00:54.7]} 19. Nxd4 {[%clk
0:01:57.8]} 19... Rxd4 {[%clk 0:00:53.5]} 20. Rxd4 {[%clk 0:01:55.3]} 20... Nxc2
{[%clk 0:00:53.7]} 21. Qe8+ {[%clk 0:01:52]} 21... Rxe8 {[%clk 0:00:43.1]} 22.
Rxe8# {[%clk 0:01:52.9]} 1-0

[Event "*** Titled Tuesday Blitz"]
[Site "Chess.com"]
[Date "2020.04.21"]
[Round "2"]
[White "Alexchess1984"]
[Black "swimmerchess"]
[Result "0-1"]
[WhiteElo "2566"]
[BlackElo "2827"]
[TimeControl "180+1"]
[EndTime "10:14:58 PDT"]
[Termination "swimmerchess won by resignation"]

1. e4 {[%clk 0:03:00.9]} 1... c5 {[%clk 0:02:59.7]} 2. c3 {[%clk 0:03:00.6]}
2... Nf6 {[%clk 0:02:58.9]} 3. e5 {[%clk 0:03:00.5]} 3... Nd5 {[%clk 0:02:59.2]}
4. Bc4 {[%clk 0:03:01]} 4... e6 {[%clk 0:02:58.7]} 5. d4 {[%clk 0:03:00.6]} 5...
cxd4 {[%clk 0:02:58.6]} 6. cxd4 {[%clk 0:03:01.5]} 6... d6 {[%clk 0:02:59.2]} 7.
Qe2 {[%clk 0:03:01.3]} 7... Nc6 {[%clk 0:02:56.5]} 8. Nf3 {[%clk 0:03:01.5]}
8... Be7 {[%clk 0:02:56]} 9. O-O {[%clk 0:03:01.5]} 9... O-O {[%clk 0:02:56.1]}
10. Re1 {[%clk 0:03:01.9]} 10... Bd7 {[%clk 0:02:54.4]} 11. exd6 {[%clk
0:02:57]} 11... Bxd6 {[%clk 0:02:54.1]} 12. Nc3 {[%clk 0:02:57.7]} 12... Nce7
{[%clk 0:02:24.2]} 13. Ne5 {[%clk 0:02:52.6]} 13... Rc8 {[%clk 0:02:14.3]} 14.
Bd3 {[%clk 0:02:25.9]} 14... Nxc3 {[%clk 0:02:07.9]} 15. bxc3 {[%clk 0:02:25.7]}
15... Rxc3 {[%clk 0:02:08.8]} 16. Bd2 {[%clk 0:02:17.3]} 16... Rc7 {[%clk
0:02:07.8]} 17. Rad1 {[%clk 0:02:14.6]} 17... Bc6 {[%clk 0:02:03.3]} 18. Bc1
{[%clk 0:02:05]} 18... Bd5 {[%clk 0:02:00.2]} 19. Qh5 {[%clk 0:02:03.1]} 19...
g6 {[%clk 0:01:51.4]} 20. Qh6 {[%clk 0:02:00.7]} 20... Nf5 {[%clk 0:01:48.6]}
21. Bxf5 {[%clk 0:02:00.7]} 21... exf5 {[%clk 0:01:49.5]} 22. Bg5 {[%clk
0:01:56.5]} 22... f6 {[%clk 0:01:49.7]} 23. Bh4 {[%clk 0:01:49.7]} 23... g5
{[%clk 0:01:48.1]} 24. Rd3 {[%clk 0:01:34.6]} 24... gxh4 {[%clk 0:01:39.9]} 25.
Qxh4 {[%clk 0:01:33.4]} 25... fxe5 {[%clk 0:01:38.3]} 26. Rg3+ {[%clk
0:01:31.3]} 26... Rg7 {[%clk 0:01:36.9]} 27. Rxg7+ {[%clk 0:01:29.4]} 27... Kxg7
{[%clk 0:01:37.8]} 28. Qg3+ {[%clk 0:01:30]} 28... Kh8 {[%clk 0:01:36.9]} 29.
dxe5 {[%clk 0:01:30.9]} 29... Bc7 {[%clk 0:01:31.7]} 30. Qc3 {[%clk 0:01:25.9]}
30... Be6 {[%clk 0:01:31.3]} 0-1